[Event "Early-Titled-Tuesday-Blitz-February-13-2024"]
[Site "Chess.com"]
[Date "2024.02.13"]
[Round "3"]
[White "stollenmonster"]
[Black "Yurovskykh_Oleksandr"]
[Result "1/2-1/2"]
[WhiteElo "2907"]
[BlackElo "2658"]
[TimeControl "180+1"]
[EndTime "8:30:43 PST"]
[Termination "Game drawn by repetition"]

1. e4 {[%clk 0:03:00.9]} 1... e6 {[%clk 0:02:59.9]} 2. Nc3 {[%clk 0:03:00.9]}
2... d5 {[%clk 0:03:00.2]} 3. g3 {[%clk 0:03:01.8]} 3... Nf6 {[%clk 0:02:59.1]}
4. Bg2 {[%clk 0:03:02.3]} 4... Be7 {[%clk 0:02:53]} 5. Nge2 {[%clk 0:02:46.9]}
5... O-O {[%clk 0:02:50.6]} 6. d4 {[%clk 0:02:45.4]} 6... dxe4 {[%clk
0:02:47.9]} 7. Nxe4 {[%clk 0:02:45]} 7... Nxe4 {[%clk 0:02:48.3]} 8. Bxe4 {[%clk
0:02:45.9]} 8... Nd7 {[%clk 0:02:47.8]} 9. O-O {[%clk 0:02:46]} 9... Nf6 {[%clk
0:02:45.1]} 10. Bg2 {[%clk 0:02:46.4]} 10... Rb8 {[%clk 0:02:24.4]} 11. c4
{[%clk 0:02:45.9]} 11... b6 {[%clk 0:02:13.8]} 12. Nc3 {[%clk 0:02:45.8]} 12...
Bb7 {[%clk 0:02:06.3]} 13. Bxb7 {[%clk 0:02:45.6]} 13... Rxb7 {[%clk 0:02:07.2]}
14. Qf3 {[%clk 0:02:45.9]} 14... Qa8 {[%clk 0:02:00]} 15. Re1 {[%clk 0:02:21.6]}
15... Rbb8 {[%clk 0:01:58.3]} 16. d5 {[%clk 0:02:21.7]} 16... Rfe8 {[%clk
0:01:46.9]} 17. Bg5 {[%clk 0:01:52.9]} 17... exd5 {[%clk 0:01:37.3]} 18. Bxf6
{[%clk 0:01:51.9]} 18... Bxf6 {[%clk 0:01:28.3]} 19. Nxd5 {[%clk 0:01:52.1]}
19... Bxb2 {[%clk 0:01:22.3]} 20. Rad1 {[%clk 0:01:50.7]} 20... Be5 {[%clk
0:01:18.5]} 21. Qf5 {[%clk 0:01:41.6]} 21... Bd6 {[%clk 0:01:13.6]} 22. Qg5
{[%clk 0:01:41.5]} 22... Kf8 {[%clk 0:00:50.5]} 23. Qf5 {[%clk 0:01:28.1]} 23...
Kg8 {[%clk 0:00:50.2]} 24. Qg5 {[%clk 0:01:17.8]} 24... h6 {[%clk 0:00:46.5]}
25. Qg4 {[%clk 0:01:03.2]} 25... Kf8 {[%clk 0:00:46.1]} 26. Qf5 {[%clk
0:00:53.8]} 26... Kg8 {[%clk 0:00:31]} 27. Qg4 {[%clk 0:00:52.5]} 27... Kf8
{[%clk 0:00:30.8]} 28. Qf5 {[%clk 0:00:52.4]} 28... Kg8 {[%clk 0:00:29.8]} 29.
Qg4 {[%clk 0:00:52]} 1/2-1/2

[Event "Early-Titled-Tuesday-Blitz-February-13-2024"]
[Site "Chess.com"]
[Date "2024.02.13"]
[Round "3"]
[White "SpeedofLight0"]
[Black "bascheyaro"]
[Result "1-0"]
[WhiteElo "3064"]
[BlackElo "2785"]
[TimeControl "180+1"]
[EndTime "8:30:47 PST"]
[Termination "SpeedofLight0 won on time"]

1. d4 {[%clk 0:03:00.9]} 1... d5 {[%clk 0:02:59.9]} 2. Nc3 {[%clk 0:03:00.6]}
2... Nf6 {[%clk 0:02:59.6]} 3. Bf4 {[%clk 0:03:01.2]} 3... c6 {[%clk 0:02:58.9]}
4. e3 {[%clk 0:03:00.6]} 4... Bf5 {[%clk 0:02:55.4]} 5. Bd3 {[%clk 0:03:00.6]}
5... Bxd3 {[%clk 0:02:55.3]} 6. cxd3 {[%clk 0:03:01.5]} 6... e6 {[%clk 0:02:55]}
7. Nf3 {[%clk 0:03:01.5]} 7... Bd6 {[%clk 0:02:53.7]} 8. Qb3 {[%clk 0:03:00.3]}
8... Bxf4 {[%clk 0:02:44.7]} 9. Qxb7 {[%clk 0:02:52.3]} 9... Qc7 {[%clk
0:02:27.5]} 10. Qxa8 {[%clk 0:02:51.3]} 10... Bd6 {[%clk 0:02:27.4]} 11. Rc1
{[%clk 0:02:23.2]} 11... Nd7 {[%clk 0:02:17.9]} 12. Nb5 {[%clk 0:01:49.8]} 12...
Qa5+ {[%clk 0:02:17.2]} 13. Nc3 {[%clk 0:01:50.5]} 13... Qa6 {[%clk 0:02:12.8]}
14. Na4 {[%clk 0:01:38.5]} 14... Bb4+ {[%clk 0:00:58.3]} 15. Ke2 {[%clk
0:01:21.2]} 15... Qxa4 {[%clk 0:00:57.9]} 16. Ne5 {[%clk 0:01:20]} 16... O-O
{[%clk 0:00:17.3]} 17. Nxd7 {[%clk 0:01:19.4]} 17... Nxd7 {[%clk 0:00:17.5]} 18.
Qxc6 {[%clk 0:01:19.5]} 18... Qxc6 {[%clk 0:00:12.7]} 19. Rxc6 {[%clk
0:01:20.4]} 19... Ba5 {[%clk 0:00:06.1]} 20. Rhc1 {[%clk 0:01:19.2]} 20... Bb6
{[%clk 0:00:05.5]} 21. b4 {[%clk 0:01:17.6]} 21... Rd8 {[%clk 0:00:04.9]} 22. a4
{[%clk 0:01:16.2]} 22... a5 {[%clk 0:00:02.7]} 23. bxa5 {[%clk 0:01:12.4]} 23...
Bxa5 {[%clk 0:00:03.6]} 24. Ra6 {[%clk 0:01:12.6]} 24... Bb6 {[%clk 0:00:03.5]}
25. a5 {[%clk 0:01:12.6]} 25... Bxd4 {[%clk 0:00:02.7]} 26. exd4 {[%clk
0:01:12.3]} 26... Nb8 {[%clk 0:00:00.5]} 27. Ra8 {[%clk 0:01:11.9]} 1-0

[Event "Early-Titled-Tuesday-Blitz-February-13-2024"]
[Site "Chess.com"]
[Date "2024.02.13"]
[Round "3"]
[White "saraswathii"]
[Black "Kostya0705"]
[Result "0-1"]
[WhiteElo "2373"]
[BlackElo "2607"]
[TimeControl "180+1"]
[EndTime "8:30:47 PST"]
[Termination "Kostya0705 won by resignation"]

1. e4 {[%clk 0:03:00]} 1... c5 {[%clk 0:03:00.2]} 2. Nf3 {[%clk 0:02:59]} 2...
e6 {[%clk 0:03:00.4]} 3. d3 {[%clk 0:02:55.7]} 3... Nc6 {[%clk 0:03:00]} 4. g3
{[%clk 0:02:55.3]} 4... g6 {[%clk 0:02:50.7]} 5. Bg2 {[%clk 0:02:54.1]} 5... Bg7
{[%clk 0:02:48.7]} 6. O-O {[%clk 0:02:50.6]} 6... Nge7 {[%clk 0:02:47.2]} 7. c3
{[%clk 0:02:45.6]} 7... O-O {[%clk 0:02:47.1]} 8. Nbd2 {[%clk 0:02:42]} 8... d5
{[%clk 0:02:41.6]} 9. Qe2 {[%clk 0:02:40.7]} 9... Qc7 {[%clk 0:02:29.8]} 10. Re1
{[%clk 0:02:32.5]} 10... b5 {[%clk 0:02:28.8]} 11. e5 {[%clk 0:02:18.4]} 11...
d4 {[%clk 0:02:28.6]} 12. Nf1 {[%clk 0:02:05.8]} 12... Bb7 {[%clk 0:02:27.4]}
13. Bf4 {[%clk 0:02:00.4]} 13... Nd5 {[%clk 0:02:26.7]} 14. Bd2 {[%clk
0:01:59.4]} 14... Rfd8 {[%clk 0:02:25.6]} 15. h4 {[%clk 0:01:49.1]} 15... h5
{[%clk 0:02:22.2]} 16. N1h2 {[%clk 0:01:39.2]} 16... a5 {[%clk 0:02:12.6]} 17.
g4 {[%clk 0:01:25.9]} 17... hxg4 {[%clk 0:02:07.9]} 18. Nxg4 {[%clk 0:01:26.8]}
18... c4 {[%clk 0:02:06.2]} 19. cxd4 {[%clk 0:01:13]} 19... cxd3 {[%clk
0:02:00.3]} 20. Qxd3 {[%clk 0:01:12.3]} 20... Ndb4 {[%clk 0:02:01.2]} 21. Bxb4
{[%clk 0:01:05.4]} 21... Nxb4 {[%clk 0:01:59.8]} 22. Qd2 {[%clk 0:00:41.1]}
22... Qb6 {[%clk 0:01:52.9]} 23. a3 {[%clk 0:00:34.4]} 23... Bxf3 {[%clk
0:01:48.7]} 24. Bxf3 {[%clk 0:00:33.4]} 24... Rxd4 {[%clk 0:01:49.2]} 25. Qe2
{[%clk 0:00:25.3]} 25... Nd5 {[%clk 0:01:46.3]} 26. Rad1 {[%clk 0:00:20.4]}
26... Nf4 {[%clk 0:01:44.8]} 27. Qe3 {[%clk 0:00:17.7]} 27... Rad8 {[%clk
0:01:45.3]} 28. Nf6+ {[%clk 0:00:13.7]} 28... Bxf6 {[%clk 0:01:40.6]} 29. exf6
{[%clk 0:00:14.6]} 29... Kh7 {[%clk 0:01:37.1]} 30. Qe5 {[%clk 0:00:10.8]} 30...
Rxd1 {[%clk 0:01:33.4]} 31. Rxd1 {[%clk 0:00:05.1]} 31... Nh3+ {[%clk
0:01:31.5]} 32. Kg2 {[%clk 0:00:04.9]} 32... Qxf2+ {[%clk 0:01:31.6]} 0-1

[Event "Early-Titled-Tuesday-Blitz-February-13-2024"]
[Site "Chess.com"]
[Date "2024.02.13"]
[Round "3"]
[White "Bykov_Egor"]
[Black "alexrustemov"]
[Result "0-1"]
[WhiteElo "2587"]
[BlackElo "2816"]
[TimeControl "180+1"]
[EndTime "8:30:51 PST"]
[Termination "alexrustemov won by resignation"]

1. e4 {[%clk 0:03:00.9]} 1... e6 {[%clk 0:03:00.1]} 2. d4 {[%clk 0:03:00.8]}
2... d5 {[%clk 0:03:00.5]} 3. Nc3 {[%clk 0:03:01.5]} 3... dxe4 {[%clk
0:03:01.1]} 4. Nxe4 {[%clk 0:03:01.4]} 4... Bd7 {[%clk 0:03:02]} 5. Nf3 {[%clk
0:02:59.5]} 5... Bc6 {[%clk 0:03:01]} 6. Bd3 {[%clk 0:02:58.3]} 6... Nd7 {[%clk
0:03:00.8]} 7. c4 {[%clk 0:02:55.8]} 7... Ngf6 {[%clk 0:02:46.9]} 8. Nc3 {[%clk
0:02:55.8]} 8... Bxf3 {[%clk 0:02:45.9]} 9. Qxf3 {[%clk 0:02:55.4]} 9... c5
{[%clk 0:02:46.8]} 10. Qxb7 {[%clk 0:02:22.4]} 10... cxd4 {[%clk 0:02:46.1]} 11.
Nb5 {[%clk 0:02:18.1]} 11... Bb4+ {[%clk 0:02:38.9]} 12. Ke2 {[%clk 0:02:08.1]}
12... O-O {[%clk 0:02:37]} 13. Nxd4 {[%clk 0:01:36.7]} 13... Nc5 {[%clk
0:02:30.1]} 14. Qxb4 {[%clk 0:01:22.9]} 14... Qxd4 {[%clk 0:02:29.6]} 15. Rd1
{[%clk 0:01:08.2]} 15... Qg4+ {[%clk 0:02:23.1]} 16. Ke1 {[%clk 0:01:08.4]}
16... Nxd3+ {[%clk 0:02:08.3]} 17. Rxd3 {[%clk 0:01:09.3]} 17... Qe4+ {[%clk
0:02:06.6]} 18. Re3 {[%clk 0:01:08.3]} 18... Qxg2 {[%clk 0:02:06.8]} 19. Ke2
{[%clk 0:00:51]} 19... Rfd8 {[%clk 0:02:02.8]} 20. h3 {[%clk 0:00:23.3]} 20...
Ne4 {[%clk 0:01:53.1]} 21. Rf3 {[%clk 0:00:21.1]} 21... Rd1 {[%clk 0:01:34.1]}
22. Qb7 {[%clk 0:00:16]} 22... Qf1+ {[%clk 0:01:28]} 23. Ke3 {[%clk 0:00:16.1]}
23... Re1+ {[%clk 0:01:10]} 24. Kf4 {[%clk 0:00:15.8]} 24... e5+ {[%clk
0:01:07.2]} 25. Kg4 {[%clk 0:00:03.1]} 25... Qg2+ {[%clk 0:01:05.4]} 26. Rg3
{[%clk 0:00:03.5]} 26... Nf6+ {[%clk 0:01:05.6]} 27. Kf5 {[%clk 0:00:04.2]}
27... Qxb7 {[%clk 0:01:05.6]} 0-1

[Event "Early-Titled-Tuesday-Blitz-February-13-2024"]
[Site "Chess.com"]
[Date "2024.02.13"]
[Round "3"]
[White "Juwen"]
[Black "EsmeraldasAnderson03"]
[Result "1-0"]
[WhiteElo "2618"]
[BlackElo "2405"]
[TimeControl "180+1"]
[EndTime "8:30:52 PST"]
[Termination "Juwen won by resignation"]

1. d4 {[%clk 0:02:54.3]} 1... d5 {[%clk 0:02:58.7]} 2. Nf3 {[%clk 0:02:54.4]}
2... Nf6 {[%clk 0:02:58.5]} 3. Bf4 {[%clk 0:02:55.1]} 3... e6 {[%clk 0:02:58.6]}
4. e3 {[%clk 0:02:55]} 4... Bd6 {[%clk 0:02:59.2]} 5. Bg3 {[%clk 0:02:54.9]}
5... O-O {[%clk 0:02:59.5]} 6. Nbd2 {[%clk 0:02:53.1]} 6... c5 {[%clk
0:02:59.5]} 7. c3 {[%clk 0:02:51.5]} 7... Qc7 {[%clk 0:02:59.3]} 8. Bd3 {[%clk
0:02:48.8]} 8... Nbd7 {[%clk 0:02:59.2]} 9. O-O {[%clk 0:02:44.2]} 9... Bxg3
{[%clk 0:02:58]} 10. hxg3 {[%clk 0:02:43.9]} 10... e5 {[%clk 0:02:58.9]} 11.
dxe5 {[%clk 0:02:44.3]} 11... Nxe5 {[%clk 0:02:59.8]} 12. Nxe5 {[%clk
0:02:44.6]} 12... Qxe5 {[%clk 0:03:00.7]} 13. Qc2 {[%clk 0:02:41.5]} 13... Qh5
{[%clk 0:02:58.7]} 14. f3 {[%clk 0:02:40.4]} 14... Qg5 {[%clk 0:02:51.9]} 15.
Kf2 {[%clk 0:02:32.7]} 15... Re8 {[%clk 0:02:46.5]} 16. Rae1 {[%clk 0:02:30.7]}
16... Bd7 {[%clk 0:02:23.7]} 17. Rh1 {[%clk 0:02:28.8]} 17... h6 {[%clk
0:02:14.2]} 18. c4 {[%clk 0:02:27.5]} 18... b6 {[%clk 0:01:55.3]} 19. a3 {[%clk
0:02:22.3]} 19... Rad8 {[%clk 0:01:48.3]} 20. cxd5 {[%clk 0:02:20.3]} 20... Nxd5
{[%clk 0:01:46.2]} 21. Ne4 {[%clk 0:02:20.5]} 21... Qe7 {[%clk 0:01:38.3]} 22.
g4 {[%clk 0:02:17.7]} 22... f5 {[%clk 0:01:14.7]} 23. Bc4 {[%clk 0:02:00.5]}
23... fxe4 {[%clk 0:01:00.9]} 24. Bxd5+ {[%clk 0:01:58.4]} 24... Kh8 {[%clk
0:01:01.2]} 25. Bxe4 {[%clk 0:01:51.3]} 25... Bxg4 {[%clk 0:01:01]} 26. Bg6
{[%clk 0:01:40.2]} 26... Rf8 {[%clk 0:00:54.7]} 27. Rd1 {[%clk 0:01:26.4]} 27...
Rxd1 {[%clk 0:00:48.8]} 28. Rxd1 {[%clk 0:01:27.3]} 28... Qh4+ {[%clk
0:00:46.9]} 29. Kg1 {[%clk 0:01:27.1]} 29... Bxf3 {[%clk 0:00:20.2]} 30. gxf3
{[%clk 0:01:24.6]} 30... Rxf3 {[%clk 0:00:21.1]} 31. Qg2 {[%clk 0:01:16.2]}
31... Rxe3 {[%clk 0:00:12.1]} 32. Qa8+ {[%clk 0:01:14.3]} 1-0

[Event "Early-Titled-Tuesday-Blitz-February-13-2024"]
[Site "Chess.com"]
[Date "2024.02.13"]
[Round "3"]
[White "albi1999"]
[Black "GMRAVEN_ON_YOUTUBE"]
[Result "1-0"]
[WhiteElo "2609"]
[BlackElo "2806"]
[TimeControl "180+1"]
[EndTime "8:30:57 PST"]
[Termination "albi1999 won by resignation"]

1. Nf3 {[%clk 0:02:58.8]} 1... f5 {[%clk 0:02:59.2]} 2. d4 {[%clk 0:02:55.5]}
2... Nf6 {[%clk 0:02:59]} 3. g3 {[%clk 0:02:54.9]} 3... g6 {[%clk 0:02:58.7]} 4.
Bg2 {[%clk 0:02:55.2]} 4... Bg7 {[%clk 0:02:59.6]} 5. O-O {[%clk 0:02:55.7]}
5... O-O {[%clk 0:03:00.2]} 6. Nbd2 {[%clk 0:02:55.9]} 6... d6 {[%clk
0:02:57.6]} 7. Re1 {[%clk 0:02:55.8]} 7... Ne4 {[%clk 0:02:42.9]} 8. c3 {[%clk
0:02:42]} 8... c6 {[%clk 0:02:30]} 9. Nxe4 {[%clk 0:02:35.3]} 9... fxe4 {[%clk
0:02:30.2]} 10. Ng5 {[%clk 0:02:36.2]} 10... d5 {[%clk 0:02:30.8]} 11. f3 {[%clk
0:02:35.9]} 11... e5 {[%clk 0:01:54.4]} 12. fxe4 {[%clk 0:02:09]} 12... exd4
{[%clk 0:01:48.9]} 13. exd5 {[%clk 0:02:09]} 13... dxc3 {[%clk 0:01:45.9]} 14.
Qb3 {[%clk 0:01:18.5]} 14... Qb6+ {[%clk 0:01:41.1]} 15. Qxb6 {[%clk 0:01:04]}
15... axb6 {[%clk 0:01:42]} 16. dxc6 {[%clk 0:01:01.1]} 16... Nxc6 {[%clk
0:01:41.8]} 17. Bd5+ {[%clk 0:00:43.9]} 17... Kh8 {[%clk 0:01:30.4]} 18. bxc3
{[%clk 0:00:43.2]} 18... Bxc3 {[%clk 0:01:28.2]} 19. Rb1 {[%clk 0:00:22.2]}
19... h6 {[%clk 0:01:13.9]} 20. Nf7+ {[%clk 0:00:22.2]} 20... Rxf7 {[%clk
0:01:14.1]} 21. Bxf7 {[%clk 0:00:22.8]} 21... Kg7 {[%clk 0:01:09.4]} 22. Bb3
{[%clk 0:00:19.5]} 22... Bxe1 {[%clk 0:01:04.7]} 23. Bb2+ {[%clk 0:00:19.8]}
23... Kh7 {[%clk 0:01:05]} 24. Rxe1 {[%clk 0:00:19.7]} 24... Bd7 {[%clk
0:00:58.7]} 25. Rf1 {[%clk 0:00:19.8]} 25... Be8 {[%clk 0:00:46.4]} 26. Rf8
{[%clk 0:00:19.6]} 26... g5 {[%clk 0:00:46.5]} 27. Bc2+ {[%clk 0:00:19.1]} 27...
Bg6 {[%clk 0:00:45.1]} 28. Bxg6+ {[%clk 0:00:19.7]} 28... Kxg6 {[%clk
0:00:45.3]} 29. Rxa8 {[%clk 0:00:20.6]} 1-0

[Event "Early-Titled-Tuesday-Blitz-February-13-2024"]
[Site "Chess.com"]
[Date "2024.02.13"]
[Round "3"]
[White "HeroWilczek"]
[Black "Timerkhanov"]
[Result "0-1"]
[WhiteElo "2472"]
[BlackElo "2661"]
[TimeControl "180+1"]
[EndTime "8:30:57 PST"]
[Termination "Timerkhanov won by resignation"]

1. e4 {[%clk 0:03:00.9]} 1... c5 {[%clk 0:02:59.4]} 2. Nf3 {[%clk 0:03:01.3]}
2... a6 {[%clk 0:02:59.3]} 3. g3 {[%clk 0:03:00.2]} 3... b5 {[%clk 0:02:58.6]}
4. Bg2 {[%clk 0:03:00.8]} 4... Bb7 {[%clk 0:02:58.6]} 5. d3 {[%clk 0:02:57.9]}
5... e6 {[%clk 0:02:58]} 6. O-O {[%clk 0:02:58.6]} 6... d6 {[%clk 0:02:57.9]} 7.
Nc3 {[%clk 0:02:57.7]} 7... Nf6 {[%clk 0:02:58]} 8. Re1 {[%clk 0:02:58.2]} 8...
Be7 {[%clk 0:02:58]} 9. d4 {[%clk 0:02:57.5]} 9... cxd4 {[%clk 0:02:55.7]} 10.
Nxd4 {[%clk 0:02:58.4]} 10... Qc7 {[%clk 0:02:52.6]} 11. Be3 {[%clk 0:02:33.3]}
11... Nbd7 {[%clk 0:02:49.5]} 12. a4 {[%clk 0:02:30.9]} 12... b4 {[%clk
0:02:47.4]} 13. Na2 {[%clk 0:02:29.5]} 13... d5 {[%clk 0:02:43.3]} 14. exd5
{[%clk 0:02:28.2]} 14... Nxd5 {[%clk 0:02:41.2]} 15. Nf5 {[%clk 0:02:06.1]}
15... Nxe3 {[%clk 0:02:32.7]} 16. Nxe3 {[%clk 0:01:54]} 16... Bxg2 {[%clk
0:02:27.5]} 17. Kxg2 {[%clk 0:01:54.9]} 17... O-O {[%clk 0:02:26.3]} 18. Qg4
{[%clk 0:01:42.2]} 18... a5 {[%clk 0:02:15.4]} 19. Rad1 {[%clk 0:01:38.7]} 19...
Qc6+ {[%clk 0:02:11]} 20. Qf3 {[%clk 0:01:35.6]} 20... Qxf3+ {[%clk 0:02:10.2]}
21. Kxf3 {[%clk 0:01:36.5]} 21... Nb6 {[%clk 0:02:08.8]} 22. b3 {[%clk
0:01:33.7]} 22... Rac8 {[%clk 0:02:08.2]} 23. Re2 {[%clk 0:01:20.6]} 23... f5
{[%clk 0:01:54.8]} 24. Nc1 {[%clk 0:01:16.3]} 24... g5 {[%clk 0:01:31.4]} 25.
Nd3 {[%clk 0:00:43.6]} 25... Bf6 {[%clk 0:01:27]} 26. g4 {[%clk 0:00:36.1]}
26... Bd4 {[%clk 0:01:14]} 27. gxf5 {[%clk 0:00:32.5]} 27... exf5 {[%clk
0:01:14.9]} 28. Rg1 {[%clk 0:00:25.6]} 28... g4+ {[%clk 0:01:14.1]} 29. Kf4
{[%clk 0:00:18.4]} 29... Rce8 {[%clk 0:01:09.5]} 30. f3 {[%clk 0:00:15.8]} 30...
Bxe3+ {[%clk 0:01:07.9]} 31. Rxe3 {[%clk 0:00:15.9]} 31... Nd5+ {[%clk
0:01:08.2]} 32. Kg3 {[%clk 0:00:15.4]} 32... Rxe3 {[%clk 0:01:06.1]} 0-1

[Event "Early-Titled-Tuesday-Blitz-February-13-2024"]
[Site "Chess.com"]
[Date "2024.02.13"]
[Round "3"]
[White "iwanyu"]
[Black "Yan_Dyomin2010"]
[Result "1-0"]
[WhiteElo "2874"]
[BlackElo "2586"]
[TimeControl "180+1"]
[EndTime "8:31:02 PST"]
[Termination "iwanyu won by resignation"]

1. d4 {[%clk 0:03:00.9]} 1... Nf6 {[%clk 0:02:59.3]} 2. c4 {[%clk 0:02:58.6]}
2... c5 {[%clk 0:02:56.8]} 3. d5 {[%clk 0:02:58.1]} 3... b5 {[%clk 0:02:55.7]}
4. cxb5 {[%clk 0:02:58.9]} 4... a6 {[%clk 0:02:55]} 5. e3 {[%clk 0:02:58.7]}
5... e6 {[%clk 0:02:42.2]} 6. dxe6 {[%clk 0:02:55.6]} 6... fxe6 {[%clk
0:02:42.9]} 7. Nf3 {[%clk 0:02:51.7]} 7... d5 {[%clk 0:02:39.3]} 8. Nc3 {[%clk
0:02:46.8]} 8... Bd6 {[%clk 0:02:37.6]} 9. Be2 {[%clk 0:02:40.5]} 9... O-O
{[%clk 0:02:36.7]} 10. O-O {[%clk 0:02:40.2]} 10... Qe7 {[%clk 0:02:27.1]} 11.
e4 {[%clk 0:02:23.3]} 11... d4 {[%clk 0:02:05.9]} 12. e5 {[%clk 0:02:22.8]}
12... Bxe5 {[%clk 0:02:02.5]} 13. Nxe5 {[%clk 0:02:21.8]} 13... dxc3 {[%clk
0:02:03.4]} 14. Bf3 {[%clk 0:02:12.8]} 14... Ra7 {[%clk 0:01:59]} 15. b6 {[%clk
0:02:11.7]} 15... cxb2 {[%clk 0:01:52]} 16. Bxb2 {[%clk 0:02:05.3]} 16... Rb7
{[%clk 0:01:51.6]} 17. Bxb7 {[%clk 0:01:54.7]} 17... Bxb7 {[%clk 0:01:52.5]} 18.
a4 {[%clk 0:01:53.9]} 18... a5 {[%clk 0:01:51.8]} 19. Re1 {[%clk 0:01:35.5]}
19... Ne4 {[%clk 0:01:39.1]} 20. f3 {[%clk 0:01:31.3]} 20... Nd6 {[%clk
0:01:38.7]} 21. Qd2 {[%clk 0:01:26]} 21... Nc8 {[%clk 0:01:10.5]} 22. Qxa5
{[%clk 0:01:21.3]} 22... Na6 {[%clk 0:01:06.7]} 23. Rad1 {[%clk 0:01:13.7]}
23... Nb4 {[%clk 0:01:06.2]} 24. Rd7 {[%clk 0:01:07.7]} 24... Qh4 {[%clk
0:00:54.6]} 25. g3 {[%clk 0:01:05.2]} 25... Qg5 {[%clk 0:00:54.9]} 26. Rxb7
{[%clk 0:00:36.9]} 26... Qd2 {[%clk 0:00:54.2]} 27. Rxg7+ {[%clk 0:00:34.6]}
27... Kh8 {[%clk 0:00:50]} 28. Nd3 {[%clk 0:00:26.8]} 1-0

[Event "Early-Titled-Tuesday-Blitz-February-13-2024"]
[Site "Chess.com"]
[Date "2024.02.13"]
[Round "3"]
[White "Perecke"]
[Black "Canal_Showdrez"]
[Result "1-0"]
[WhiteElo "2547"]
[BlackElo "2082"]
[TimeControl "180+1"]
[EndTime "8:31:04 PST"]
[Termination "Perecke won by resignation"]

1. e4 {[%clk 0:03:00]} 1... c5 {[%clk 0:02:58]} 2. Nf3 {[%clk 0:03:00.1]} 2...
Nc6 {[%clk 0:02:57.7]} 3. d4 {[%clk 0:03:00.5]} 3... cxd4 {[%clk 0:02:58.6]} 4.
Nxd4 {[%clk 0:03:01.4]} 4... Nf6 {[%clk 0:02:58.7]} 5. Nc3 {[%clk 0:03:01.7]}
5... e5 {[%clk 0:02:57.7]} 6. Ndb5 {[%clk 0:03:02]} 6... d6 {[%clk 0:02:57.9]}
7. Nd5 {[%clk 0:03:02.4]} 7... Nxd5 {[%clk 0:02:57.2]} 8. exd5 {[%clk
0:03:03.3]} 8... Nb8 {[%clk 0:02:57.8]} 9. a4 {[%clk 0:03:03.6]} 9... Nd7 {[%clk
0:02:56.1]} 10. Be2 {[%clk 0:03:00.6]} 10... Be7 {[%clk 0:02:55.9]} 11. O-O
{[%clk 0:03:00.6]} 11... f5 {[%clk 0:02:54.9]} 12. a5 {[%clk 0:03:00]} 12... f4
{[%clk 0:02:53.6]} 13. Bd2 {[%clk 0:02:57.2]} 13... O-O {[%clk 0:02:52.8]} 14.
Bb4 {[%clk 0:02:47]} 14... Nf6 {[%clk 0:02:47.8]} 15. c4 {[%clk 0:02:46.3]}
15... e4 {[%clk 0:02:41.9]} 16. Qb3 {[%clk 0:02:44.4]} 16... a6 {[%clk
0:02:31.7]} 17. Nd4 {[%clk 0:02:28.4]} 17... Kh8 {[%clk 0:02:29.8]} 18. Rac1
{[%clk 0:02:26.4]} 18... Bd7 {[%clk 0:02:28.2]} 19. c5 {[%clk 0:02:26.3]} 19...
dxc5 {[%clk 0:02:27.2]} 20. Bxc5 {[%clk 0:02:27.2]} 20... Bxc5 {[%clk
0:02:27.4]} 21. Rxc5 {[%clk 0:02:28.1]} 21... Rc8 {[%clk 0:02:17.8]} 22. Rfc1
{[%clk 0:02:28.1]} 22... Rxc5 {[%clk 0:02:15]} 23. Rxc5 {[%clk 0:02:29]} 23...
e3 {[%clk 0:02:07.1]} 24. fxe3 {[%clk 0:02:23.8]} 24... Qe7 {[%clk 0:02:07.3]}
25. Rc3 {[%clk 0:02:12.5]} 25... Ne4 {[%clk 0:02:06.1]} 26. Rc1 {[%clk
0:02:03.9]} 26... Nd2 {[%clk 0:02:01.9]} 27. Qd3 {[%clk 0:01:52.7]} 27... fxe3
{[%clk 0:02:02]} 28. Ne6 {[%clk 0:01:49.8]} 28... Bxe6 {[%clk 0:02:00.9]} 29.
Qxe3 {[%clk 0:01:49.4]} 29... Qb4 {[%clk 0:01:41]} 30. dxe6 {[%clk 0:01:47.7]}
30... Nb3 {[%clk 0:01:24.4]} 31. Rf1 {[%clk 0:01:30.4]} 31... Re8 {[%clk
0:01:16.3]} 32. e7 {[%clk 0:01:22.4]} 32... h6 {[%clk 0:00:57.8]} 33. Bd3 {[%clk
0:01:18.7]} 33... Nxa5 {[%clk 0:00:46.6]} 34. Qe4 {[%clk 0:01:02.9]} 34... Qxe4
{[%clk 0:00:46.2]} 35. Rf8+ {[%clk 0:01:01.7]} 1-0

[Event "Early-Titled-Tuesday-Blitz-February-13-2024"]
[Site "Chess.com"]
[Date "2024.02.13"]
[Round "3"]
[White "Sychev_Klementy"]
[Black "pifion"]
[Result "1-0"]
[WhiteElo "2912"]
[BlackElo "2670"]
[TimeControl "180+1"]
[EndTime "8:31:05 PST"]
[Termination "Sychev_Klementy won by resignation"]

1. e4 {[%clk 0:03:00.9]} 1... c5 {[%clk 0:02:59.6]} 2. Nf3 {[%clk 0:03:00.7]}
2... e6 {[%clk 0:03:00.1]} 3. d4 {[%clk 0:03:01.1]} 3... cxd4 {[%clk 0:03:00.8]}
4. Nxd4 {[%clk 0:03:01.8]} 4... Nc6 {[%clk 0:03:01.2]} 5. Nc3 {[%clk 0:03:00.3]}
5... Qc7 {[%clk 0:03:01.3]} 6. Nxc6 {[%clk 0:03:00.7]} 6... bxc6 {[%clk
0:03:00.2]} 7. Bd3 {[%clk 0:03:00.7]} 7... Nf6 {[%clk 0:02:59.7]} 8. Qe2 {[%clk
0:03:00.8]} 8... d5 {[%clk 0:02:58.3]} 9. exd5 {[%clk 0:03:00.7]} 9... cxd5
{[%clk 0:02:58.1]} 10. Nb5 {[%clk 0:03:00.5]} 10... Qb6 {[%clk 0:02:37.5]} 11.
Bf4 {[%clk 0:02:58.5]} 11... Kd7 {[%clk 0:02:10.1]} 12. O-O {[%clk 0:02:17.2]}
12... Ba6 {[%clk 0:02:06.6]} 13. a4 {[%clk 0:02:11.2]} 13... Rc8 {[%clk
0:01:56]} 14. c4 {[%clk 0:02:10.2]} 14... Bc5 {[%clk 0:01:52.4]} 15. b4 {[%clk
0:02:00.2]} 15... Bxb4 {[%clk 0:01:34]} 16. Rab1 {[%clk 0:01:55.1]} 16... Qa5
{[%clk 0:01:34.1]} 17. Rfd1 {[%clk 0:01:35.2]} 17... Rhd8 {[%clk 0:01:31.7]} 18.
cxd5 {[%clk 0:01:18.5]} 18... Nxd5 {[%clk 0:01:30.7]} 19. Qh5 {[%clk 0:01:17.8]}
19... Ke8 {[%clk 0:01:24.4]} 20. Be5 {[%clk 0:01:03]} 20... Bf8 {[%clk
0:01:14.3]} 21. Qxh7 {[%clk 0:00:55.8]} 21... Nb4 {[%clk 0:01:07]} 22. Bf1
{[%clk 0:00:29.1]} 22... Rxd1 {[%clk 0:01:05]} 23. Rxd1 {[%clk 0:00:28.1]} 23...
Qxa4 {[%clk 0:01:05.2]} 24. Ra1 {[%clk 0:00:22.5]} 24... Bxb5 {[%clk 0:00:55]}
25. Rxa4 {[%clk 0:00:20.8]} 25... Bxa4 {[%clk 0:00:55.5]} 26. Bxg7 {[%clk
0:00:09.8]} 26... Bxg7 {[%clk 0:00:55.4]} 27. Qxg7 {[%clk 0:00:09.9]} 27... Bd7
{[%clk 0:00:49]} 28. Qh8+ {[%clk 0:00:09.7]} 28... Ke7 {[%clk 0:00:47.8]} 29.
Qh4+ {[%clk 0:00:09.8]} 1-0